bitfinex/quotes_BTCUSD_20260101
["timestamp","ask_amount","ask_price","bid_price","bid_amount"]
[1767253080800,0.01144,87700.0,87689.0,0.03033843]
[1767253081293,4.2e-07,87698.0,87695.0,0.01140315]
[1767253081493,4.2e-07,87698.0,87695.0,0.06008419]
[1767253081691,4.2e-07,87698.0,87695.0,0.04868104]
[1767253081893,4.2e-07,87698.0,87695.0,0.06008419]
[1767253083036,4.2e-07,87698.0,87696.0,0.04868104]
[1767253092487,4.2e-07,87698.0,87697.0,0.10569553]
[1767253093669,0.00743309,87700.0,87698.0,0.05701333]
[1767253093897,0.00653409,87700.0,87698.0,0.05701333]
[1767253094093,0.00653409,87700.0,87697.0,0.04868104]
[1767253098748,0.00653409,87700.0,87697.0,0.04813104]
[1767253099406,0.00653409,87700.0,87692.0,0.06008458]
[1767253101847,0.00653409,87700.0,87692.0,0.04868104]
[1767253102054,0.00653409,87700.0,87692.0,0.06008458]
[1767253102433,0.00653409,87700.0,87692.0,0.04868104]
[1767253102616,0.00653409,87700.0,87692.0,0.06008458]
[1767253102822,0.00653409,87700.0,87692.0,0.04868104]
[1767253103659,0.00653409,87700.0,87692.0,0.06008458]
[1767253104164,0.00653409,87700.0,87695.0,0.04740681]
[1767253106046,0.0114,87705.0,87694.0,0.01140328]
[1767253106370,0.0114,87705.0,87695.0,0.04740681]
[1767253107433,0.0114,87705.0,87695.0,0.05880996]
[1767253107991,0.0114,87705.0,87695.0,0.04740681]
[1767253108159,0.0114,87705.0,87695.0,0.05880996]
[1767253108553,0.0114,87705.0,87695.0,0.04740681]
[1767253110454,0.5273134,87705.0,87695.0,0.04740681]
[1767253113928,0.0114,87705.0,87696.0,0.04740681]
[1767253126391,0.0114,87705.0,87696.0,0.04685681]
[1767253127249,0.03607812,87705.0,87696.0,0.04685681]
[1767253127636,0.0114,87705.0,87696.0,0.04685681]
[1767253138861,0.03607783,87705.0,87696.0,0.04685681]
[1767253140605,0.03607783,87705.0,87692.0,0.0114]
[1767253140606,0.02653252,87703.0,87692.0,0.0114]
[1767253140768,0.02653252,87701.0,87685.0,0.04847407]
[1767253140968,0.5159134,87695.0,87685.0,0.05987407]
[1767253141969,0.02653252,87701.0,87685.0,0.05987407]
[1767253142175,0.5159134,87695.0,87686.0,0.04847407]
[1767253142374,0.5159134,87695.0,87687.0,0.01140419]
[1767253142593,0.5159134,87697.0,87686.0,0.05987839]
[1767253143111,0.0114,87705.0,87688.0,0.05987813]
[1767253143112,0.5159134,87700.0,87688.0,0.05987813]
[1767253143338,0.5159134,87700.0,87691.0,0.01140367]
[1767253143547,0.5159134,87700.0,87692.0,0.04847407]
[1767253143689,0.0114,87705.0,87694.0,0.04847407]
[1767253143889,0.5159134,87704.0,87694.0,0.04847407]
[1767253154419,0.5159134,87704.0,87677.0,0.04563868]
[1767253154420,0.00055,87694.0,87677.0,0.03423319]
[1767253154660,0.5159134,87704.0,87673.0,0.05702951]
[1767253154661,0.5159134,87687.0,87678.0,0.05987407]
[1767253154861,0.5159134,87688.0,87678.0,0.05987407]
[1767253155014,0.5159134,87688.0,87678.0,0.04847407]
[1767253155215,0.5159134,87690.0,87678.0,0.05987407]
[1767253156045,0.04801611,87687.0,87671.0,0.03423584]
[1767253156290,0.04801611,87687.0,87668.0,0.0001449]
[1767253156291,0.5159134,87690.0,87668.0,0.0001449]
[1767253156292,0.00055,87678.0,87668.0,0.0001449]
[1767253156492,0.5159134,87678.0,87668.0,0.0001449]
[1767253156698,0.56392951,87680.0,87668.0,0.0001449]
[1767253161793,0.5159134,87680.0,87668.0,0.0001449]
[1767253162859,0.04682769,87685.0,87668.0,0.0001449]
[1767253163013,0.5159134,87680.0,87668.0,0.0001449]
[1767253168179,0.01144,87679.0,87668.0,0.0001449]
[1767253171676,0.01144,87679.0,87669.0,0.04584345]
[1767253175069,0.01144,87681.0,87669.0,0.51624448]
[1767253175264,0.01144,87681.0,87670.0,0.05724986]
[1767253176030,0.01144,87681.0,87672.0,0.04584345]
[1767253176775,0.01144,87681.0,87672.0,0.0572496]
[1767253177230,0.01144,87681.0,87672.0,0.04584345]
[1767253178025,0.01144,87681.0,87672.0,0.0572496]
[1767253178683,0.01144,87681.0,87672.0,0.04584345]
[1767253179272,0.01144,87681.0,87672.0,0.0572496]
[1767253179448,0.01144,87681.0,87672.0,0.01140615]
[1767253179622,0.01144,87684.0,87673.0,0.05724947]
[1767253179819,0.01144,87684.0,87675.0,0.04584345]
[1767253191186,0.01144,87684.0,87675.0,0.04578696]
[1767253193260,0.01144,87686.0,87675.0,0.04578696]
[1767253194496,0.01144,87686.0,87675.0,0.05719271]
[1767253194700,0.01144,87686.0,87675.0,0.04578696]
[1767253200413,0.01144,87686.0,87675.0,0.05719271]
[1767253200819,0.01144,87686.0,87677.0,0.04582117]
[1767253201604,0.01144,87686.0,87677.0,0.04576414]
[1767253205107,0.01144,87686.0,87677.0,0.04570711]
[1767253216361,0.01144,87686.0,87677.0,0.04565008]
[1767253239531,0.01144,87686.0,87677.0,0.05705557]
[1767253244138,0.01144,87686.0,87678.0,0.02286]
[1767253244297,0.01144,87686.0,87677.0,0.04565008]
[1767253244502,0.01144,87686.0,87677.0,0.05705557]
[1767253244909,0.01144,87686.0,87677.0,0.04565008]
[1767253245091,0.01144,87686.0,87677.0,0.05705557]
[1767253245293,0.01144,87686.0,87677.0,0.04565008]
[1767253246840,0.00644,87686.0,87677.0,0.04565008]
[1767253247049,0.00644,87686.0,87677.0,0.0455936]
[1767253256894,0.00644,87686.0,87678.0,0.01140536]
[1767253257903,0.00644,87686.0,87677.0,0.05699909]
[1767253258097,0.00644,87686.0,87677.0,0.0455936]
[1767253260445,0.00644,87686.0,87677.0,0.05699909]
[1767253260864,0.00644,87686.0,87677.0,0.0455936]
[1767253261184,0.00644,87686.0,87677.0,0.05699909]
[1767253261612,0.00644,87686.0,87677.0,0.0455936]
[1767253263713,0.00644,87686.0,87677.0,0.05699909]
[1767253264137,0.00644,87686.0,87677.0,0.0455936]
[1767253264752,0.00644,87686.0,87677.0,0.05699909]
[1767253265096,0.00644,87686.0,87677.0,0.0455936]
[1767253265579,0.00644,87686.0,87677.0,0.05699909]
[1767253266714,0.0001449,87698.0,87680.0,0.04567255]
[1767253266715,0.04656691,87698.0,87680.0,0.04567255]
[1767253266887,0.01144,87693.0,87680.0,0.04567255]
[1767253267092,0.01144,87693.0,87680.0,0.05707765]
[1767253267504,0.01144,87693.0,87680.0,0.04567255]
[1767253267643,0.01144,87693.0,87680.0,0.05707765]
[1767253268299,0.01144,87693.0,87681.0,0.01140497]
[1767253268818,0.01144,87693.0,87680.0,0.5617572]
[1767253268974,0.01144,87693.0,87680.0,0.5731623]
[1767253270179,0.01144,87693.0,87680.0,0.5617572]
[1767253270497,0.01144,87693.0,87680.0,0.5731623]
[1767253272582,0.01144,87693.0,87681.0,0.01140497]
[1767253273037,0.01144,87693.0,87680.0,0.5731623]
[1767253273269,0.01144,87693.0,87680.0,0.5617572]
[1767253273442,0.01144,87693.0,87680.0,0.5731623]
[1767253273601,0.01144,87693.0,87681.0,0.01140497]
[1767253274500,0.01144,87693.0,87680.0,0.04567255]
[1767253276124,0.51608465,87690.0,87680.0,0.04567255]
[1767253279895,0.01144,87693.0,87680.0,0.04567255]
[1767253280196,0.51608465,87690.0,87680.0,0.04567255]
[1767253282632,0.00055,87680.0,87673.0,0.04502393]
[1767253282990,0.51608465,87690.0,87673.0,0.04502393]
[1767253282991,0.51608465,87690.0,87673.0,0.0449669]
[1767253283197,0.51608465,87690.0,87673.0,0.05637292]
[1767253284722,0.51608465,87690.0,87674.0,0.04502393]
[1767253285503,0.51608465,87690.0,87674.0,0.05642982]
[1767253286738,0.51608465,87690.0,87674.0,0.04502393]
[1767253288062,0.51608465,87690.0,87674.0,0.0449669]
[1767253290492,0.51612898,87690.0,87675.0,0.01140575]
[1767253292485,0.51612898,87690.0,87676.0,0.01140562]
[1767253292693,0.51612898,87690.0,87675.0,0.01140575]
[1767253293284,0.51612898,87690.0,87676.0,0.01140562]
[1767253293830,0.51612898,87690.0,87675.0,0.01140575]
[1767253294032,0.51612898,87690.0,87676.0,0.01140562]
[1767253296082,0.51612898,87690.0,87677.0,0.01140549]
[1767253297421,0.51612898,87690.0,87676.0,0.01140562]
[1767253298268,0.51612898,87690.0,87677.0,0.01140549]
[1767253298635,0.51612898,87690.0,87676.0,0.01140562]
[1767253300376,0.51612898,87690.0,87675.0,0.01140575]
[1767253300573,0.51612898,87690.0,87676.0,0.01140562]
[1767253301276,0.51612898,87690.0,87675.0,0.05642968]
[1767253302026,0.51612898,87690.0,87676.0,0.01140562]
[1767253303535,0.51612898,87690.0,87675.0,0.05642968]
[1767253305337,0.51612898,87690.0,87675.0,0.04502393]
[1767253306248,0.51612898,87690.0,87675.0,0.05642968]
[1767253306997,0.51612898,87690.0,87675.0,0.05605785]
[1767253309265,0.51612898,87690.0,87676.0,0.01140562]
[1767253309498,0.51612898,87690.0,87675.0,0.05605785]
[1767253310238,0.51612898,87690.0,87675.0,0.0446521]
[1767253310415,0.51612898,87690.0,87675.0,0.05605785]
[1767253312019,0.51612898,87690.0,87676.0,0.01140562]
[1767253312435,0.51612898,87690.0,87675.0,0.05605785]
[1767253313036,0.51612898,87690.0,87676.0,0.01140562]
[1767253314477,0.51612898,87690.0,87675.0,0.0446521]
[1767253320566,0.51612898,87690.0,87676.0,0.01140562]
[1767253320792,0.51612898,87690.0,87675.0,0.05830467]
[1767253321418,0.51612898,87690.0,87676.0,0.01140562]
[1767253322704,0.51612898,87690.0,87676.0,0.05830454]
[1767253324489,0.04628416,87692.0,87676.0,0.11533268]
[1767253324606,0.04628416,87692.0,87676.0,0.04689892]
[1767253327748,0.04628416,87692.0,87676.0,0.05830454]
[1767253327947,0.04628416,87692.0,87676.0,0.04689892]
[1767253335158,0.03539548,87691.0,87676.0,0.04689892]
[1767253335401,0.02468257,87691.0,87676.0,0.04689892]
[1767253352474,0.51610758,87690.0,87676.0,0.04689892]
[1767253362310,0.04628416,87692.0,87676.0,0.04689892]
[1767253362512,0.51610758,87690.0,87676.0,0.04689892]
[1767253366371,0.51610758,87690.0,87678.0,0.01140536]
[1767253366585,0.51610758,87690.0,87676.0,0.05830454]
[1767253367001,0.51610758,87690.0,87677.0,0.01140549]
[1767253367433,0.51610758,87690.0,87676.0,0.04689892]
[1767253367633,0.51610758,87690.0,87676.0,0.05830454]
[1767253369520,0.51610758,87690.0,87676.0,0.04689892]
[1767253373484,0.51610758,87690.0,87677.0,0.03423584]
[1767253378919,0.04628416,87692.0,87677.0,0.03423584]
[1767253379226,0.51610758,87690.0,87677.0,0.08243741]
[1767253379567,0.51610758,87690.0,87677.0,0.04820157]
[1767253380100,0.51610758,87690.0,87678.0,0.03423584]
[1767253380481,0.04628416,87692.0,87678.0,0.08243741]
[1767253380706,0.51610758,87690.0,87679.0,0.04820157]
[1767253380882,0.51610758,87690.0,87679.0,0.0596068]
[1767253381080,0.01144,87696.0,87680.0,0.56174852]
[1767253381281,0.06008744,87696.0,87680.0,0.56174852]
[1767253381506,0.06008744,87696.0,87680.0,0.0114051]
[1767253381721,0.06008744,87696.0,87681.0,0.04564081]
[1767253381938,0.06008744,87696.0,87682.0,0.01140484]
[1767253382553,0.06008744,87696.0,87683.0,0.01140471]
[1767253382733,0.06008744,87696.0,87684.0,0.01140458]
[1767253384107,0.06008744,87696.0,87682.0,0.02280968]
[1767253384329,0.06008744,87696.0,87682.0,0.01140484]
[1767253384534,0.06008744,87696.0,87682.0,0.02280968]
[1767253384764,0.06008744,87696.0,87682.0,0.01140484]
[1767253393457,0.01144,87696.0,87682.0,0.05960641]
[1767253394596,0.01144,87696.0,87682.0,0.07101125]
[1767253394723,0.01144,87696.0,87683.0,0.04820157]
[1767253408320,0.51610758,87693.0,87683.0,0.04820157]
[1767253410435,0.01144,87696.0,87683.0,0.04820157]
[1767253410833,0.01144,87696.0,87695.0,0.00036677]
[1767253411147,0.01144,87696.0,87695.0,7.7e-07]
[1767253414993,0.02215168,87696.0,87695.0,7.7e-07]
[1767253415431,0.04683184,87696.0,87695.0,7.7e-07]
[1767253418586,0.02215168,87696.0,87695.0,7.7e-07]
[1767253421807,0.04683212,87696.0,87695.0,7.7e-07]
[1767253436379,0.04684965,87695.0,87680.0,0.03423584]
[1767253436580,0.04684965,87695.0,87659.0,0.0001449]
[1767253436581,0.0427122,87679.0,87659.0,0.0001449]
[1767253436758,0.0427122,87679.0,87663.0,0.04937562]
[1767253436759,0.56287011,87678.0,87663.0,0.04937562]
[1767253436984,0.01071133,87677.0,87663.0,0.04937562]
[1767253437174,0.52747799,87678.0,87663.0,0.04937562]
[1767253437319,0.03424335,87677.0,87663.0,0.04937562]
[1767253437778,0.52747799,87678.0,87663.0,0.04937562]
[1767253437955,0.56172134,87678.0,87663.0,0.04937562]
[1767253440355,0.04568335,87678.0,87663.0,0.04937562]
[1767253449077,0.01144,87678.0,87663.0,0.04937562]
[1767253466289,0.01071141,87677.0,87663.0,0.04937562]
[1767253466456,0.01071141,87676.0,87663.0,0.04937562]
[1767253466658,0.02468002,87677.0,87663.0,0.04937562]
[1767253466860,0.0107114,87676.0,87663.0,0.04937562]
[1767253467079,0.02468002,87677.0,87663.0,0.04937562]
[1767253467260,0.01071186,87676.0,87663.0,0.04937562]
[1767253467467,0.01071186,87675.0,87663.0,0.04937562]
[1767253467765,0.02468002,87677.0,87663.0,0.04369352]
[1767253467966,0.51603799,87673.0,87663.0,0.04369352]
[1767253472525,0.51636314,87673.0,87663.0,0.04369352]
[1767253483244,0.51636314,87673.0,87659.0,0.0001449]
[1767253483454,0.51636314,87669.0,87659.0,0.0001449]
[1767253483675,0.01144,87668.0,87659.0,0.0001449]
[1767253484224,0.01144,87668.0,87660.0,0.04606236]
[1767253484789,0.01144,87668.0,87660.0,0.04610272]
[1767253498426,0.00669716,87668.0,87660.0,0.04610272]
[1767253501285,0.00669716,87668.0,87660.0,4.036e-05]
[1767253501486,0.00669716,87668.0,87649.0,0.01140914]
[1767253501487,0.00055,87660.0,87647.0,0.04876527]
[1767253501635,0.00055,87660.0,87648.0,0.04876527]
[1767253501636,0.51636314,87657.0,87648.0,0.04876527]
[1767253502003,0.51636314,87657.0,87647.0,4.443e-05]
[1767253503990,0.01144,87659.0,87647.0,4.443e-05]
[1767253504531,0.01144,87659.0,87647.0,0.01145383]
[1767253504650,0.01144,87659.0,87647.0,4.443e-05]
[1767253505004,0.01144,87661.0,87653.0,0.06017389]
[1767253505209,0.01144,87661.0,87653.0,0.04876527]
[1767253506976,0.01144,87661.0,87653.0,0.06017389]
[1767253507185,0.01144,87661.0,87653.0,0.04876527]
[1767253508222,0.01144,87661.0,87653.0,0.06017389]
[1767253508422,0.01144,87661.0,87653.0,0.04876527]
[1767253508583,0.01144,87661.0,87653.0,0.06017389]
[1767253509218,0.01144,87661.0,87655.0,0.04876527]
[1767253510826,0.01144,87661.0,87655.0,0.06017363]
[1767253511404,0.01144,87661.0,87657.0,0.04876527]
[1767253522512,0.0001449,87672.0,87657.0,0.04876527]
[1767253522716,0.01144,87666.0,87660.0,0.51633623]
[1767253522850,0.01144,87666.0,87660.0,0.04729506]
[1767253528578,0.01144,87666.0,87660.0,0.04674506]
[1767253555295,0.01144,87666.0,87655.0,0.06037486]
[1767253555809,0.01144,87666.0,87656.0,0.01140823]
[1767253556008,0.01144,87666.0,87655.0,0.06037486]
[1767253556465,0.01144,87666.0,87656.0,0.01140823]
[1767253556753,0.01144,87666.0,87656.0,0.06037473]
[1767253558216,0.01144,87666.0,87656.0,0.0489665]
[1767253559515,0.01144,87666.0,87656.0,0.06037473]
[1767253559818,0.01144,87666.0,87656.0,0.0489665]
[1767253560768,0.01144,87666.0,87656.0,0.06037473]
[1767253561078,0.01144,87666.0,87656.0,0.0489665]
[1767253561288,0.01144,87666.0,87656.0,0.06037473]
[1767253562092,0.01144,87666.0,87656.0,0.0489665]
[1767253562959,0.01144,87666.0,87656.0,0.06037473]
[1767253563505,0.01144,87666.0,87656.0,0.0489665]
[1767253566200,0.01144,87666.0,87657.0,0.0114081]
[1767253566394,0.01144,87666.0,87656.0,0.0489665]
[1767253568652,0.01144,87666.0,87656.0,0.06037473]
[1767253569356,0.01144,87666.0,87656.0,0.0489665]
[1767253570757,0.01144,87666.0,87656.0,0.06037473]
[1767253571759,0.01144,87666.0,87656.0,0.0489665]
[1767253581533,0.01144,87666.0,87656.0,0.06037473]
[1767253581963,0.0001449,87672.0,87657.0,0.0114081]
[1767253582161,0.01144,87671.0,87657.0,0.0114081]
[1767253583456,0.01144,87671.0,87658.0,0.01140797]
[1767253584286,0.01144,87671.0,87663.0,0.0479451]
[1767253584488,0.0001449,87672.0,87663.0,0.0479451]
[1767253585268,0.0001449,87672.0,87663.0,0.05935242]
[1767253585471,0.0001449,87672.0,87664.0,0.0479451]
[1767253585923,0.0001449,87672.0,87664.0,0.05935229]
[1767253586339,0.0001449,87672.0,87664.0,0.0479451]
[1767253589029,0.0001449,87672.0,87664.0,0.05935229]
[1767253589207,0.0001449,87672.0,87664.0,0.0479451]
[1767253596038,0.0001449,87672.0,87664.0,0.05935229]
[1767253596216,0.0001449,87672.0,87664.0,0.0479451]
[1767253597267,0.0001449,87672.0,87664.0,0.05935229]
[1767253597878,0.0001449,87672.0,87664.0,0.0479451]
[1767253598256,0.0001449,87672.0,87664.0,0.05935229]
[1767253602316,0.0001449,87672.0,87664.0,0.0479451]
[1767253602640,0.0001449,87672.0,87664.0,0.05935229]
[1767253603318,0.0001449,87672.0,87664.0,0.0479451]
[1767253608334,0.0001449,87672.0,87664.0,0.05935229]
[1767253609522,0.0001449,87672.0,87664.0,0.0479451]
[1767253610585,0.0001449,87672.0,87664.0,0.05935229]
[1767253611963,0.0001449,87672.0,87664.0,0.0479451]
[1767253612936,0.0001449,87672.0,87666.0,0.01140693]
[1767253613137,0.0001449,87672.0,87666.0,0.0454919]
[1767253615097,0.0001449,87672.0,87662.0,0.01140745]
[1767253615337,0.0001449,87672.0,87661.0,0.0454919]
[1767253617492,0.51623195,87671.0,87661.0,0.0454919]
[1767253620426,0.51623195,87671.0,87661.0,0.05689948]
[1767253620651,0.51623195,87671.0,87662.0,0.05689935]
[1767253623618,0.0001449,87672.0,87663.0,0.01140732]
[1767253624387,0.0001449,87672.0,87662.0,0.05689935]
[1767253624907,0.0001449,87672.0,87663.0,0.01140732]
[1767253626387,0.0001449,87672.0,87663.0,0.05689922]
[1767253627709,0.0001449,87672.0,87665.0,0.01140706]
[1767253628155,0.0001449,87672.0,87666.0,0.01140693]
[1767253628375,0.0001449,87672.0,87667.0,0.0114068]
[1767253628571,0.0001449,87672.0,87666.0,0.01140693]
[1767253628873,0.0001449,87672.0,87665.0,0.01140706]
[1767253629285,0.0001449,87672.0,87664.0,0.05689909]
[1767253630273,0.0001449,87672.0,87665.0,0.0454919]
[1767253631088,0.0001449,87672.0,87665.0,0.05689896]
[1767253631262,0.0001449,87672.0,87665.0,0.0454919]
[1767253633809,0.0001449,87672.0,87662.0,0.01140745]
[1767253634059,0.0001449,87672.0,87663.0,0.01140732]
[1767253634228,0.0001449,87672.0,87664.0,0.01140719]
[1767253634584,0.0001449,87672.0,87663.0,0.01140732]
[1767253634794,0.0001449,87672.0,87661.0,0.05689948]
[1767253635232,0.0001449,87672.0,87663.0,0.01140732]
[1767253635657,0.0001449,87672.0,87664.0,0.01140719]
[1767253637963,0.0001449,87672.0,87665.0,0.01140706]
[1767253638722,0.0001449,87672.0,87664.0,0.01140719]
[1767253639550,0.0001449,87672.0,87665.0,0.01140706]
[1767253639967,0.0001449,87672.0,87664.0,0.01140719]
[1767253640171,0.0001449,87672.0,87663.0,0.01140732]
[1767253640695,0.0001449,87672.0,87664.0,0.01140719]
[1767253642242,0.0001449,87672.0,87663.0,0.01140732]
[1767253642443,0.0001449,87672.0,87662.0,0.01140745]
[1767253642646,0.0001449,87672.0,87663.0,0.01140732]
[1767253642948,0.0001449,87672.0,87664.0,0.01140719]
[1767253643488,0.0001449,87672.0,87663.0,0.01140732]
[1767253643688,0.0001449,87672.0,87663.0,0.01135028]
[1767253643905,0.0001449,87672.0,87664.0,0.01140719]
[1767253647837,0.0001449,87672.0,87663.0,0.01135028]
[1767253648070,0.0001449,87672.0,87662.0,0.01140745]
[1767253648408,0.0001449,87672.0,87663.0,0.01140732]
[1767253648902,0.0001449,87672.0,87664.0,0.01140719]
[1767253649115,0.0001449,87672.0,87663.0,0.01140732]
[1767253649692,0.0001449,87672.0,87662.0,0.01140745]
[1767253650272,0.0001449,87672.0,87661.0,0.05689948]
[1767253650478,0.51623195,87671.0,87661.0,0.05689948]
[1767253650654,0.51623195,87671.0,87663.0,0.01140732]
[1767253650860,0.0001449,87672.0,87663.0,0.01140732]
[1767253651439,0.0001449,87672.0,87664.0,0.01140719]
[1767253651882,0.0001449,87672.0,87665.0,0.01140706]
[1767253652139,0.0001449,87672.0,87663.0,0.01140732]
[1767253652567,0.0001449,87672.0,87664.0,0.01140719]
[1767253653615,0.0001449,87672.0,87663.0,0.01140732]
[1767253654138,0.0001449,87672.0,87664.0,0.01140719]
[1767253654315,0.0001449,87672.0,87663.0,0.01140732]
[1767253655517,0.0001449,87672.0,87664.0,0.01140719]
[1767253655720,0.0001449,87672.0,87665.0,0.01140706]
[1767253656995,0.0001449,87672.0,87664.0,0.01140719]
[1767253657207,0.0001449,87672.0,87663.0,0.06104751]
[1767253657402,0.0001449,87672.0,87664.0,0.01140719]
[1767253658445,0.0001449,87672.0,87666.0,0.01140693]
[1767253660189,0.0001449,87672.0,87664.0,0.01140719]
[1767253660791,0.0001449,87672.0,87665.0,0.01140706]
[1767253661449,0.0001449,87672.0,87664.0,0.01140719]
[1767253661607,0.0001449,87672.0,87665.0,0.01140706]
[1767253661948,0.0001449,87672.0,87664.0,0.01140719]
[1767253663054,0.0001449,87672.0,87665.0,0.01140706]
[1767253663616,0.0001449,87672.0,87664.0,0.01140719]
[1767253664035,0.0001449,87672.0,87663.0,0.06104751]
[1767253664938,0.0001449,87672.0,87664.0,0.01140719]
[1767253665344,0.0001449,87672.0,87667.0,0.04964019]
[1767253665930,0.0001449,87672.0,87667.0,0.06104699]
[1767253666137,0.0001449,87672.0,87668.0,0.06104686]
[1767253666447,0.0001449,87672.0,87669.0,0.01140654]
[1767253668164,0.0001449,87672.0,87668.0,0.06104686]
[1767253668367,0.5162571,87680.0,87672.0,0.000144]
[1767253668783,0.5162571,87680.0,87668.0,0.04964019]
[1767253669245,0.0001449,87681.0,87668.0,0.06104686]
[1767253669446,0.5162571,87680.0,87668.0,0.06104686]
[1767253669642,0.5162571,87680.0,87669.0,0.01140654]
[1767253671897,0.0001449,87681.0,87669.0,0.01140654]
[1767253672267,0.0001449,87681.0,87668.0,0.06104686]
[1767253672482,0.00055,87668.0,87664.0,0.05938147]
[1767253672665,0.00055,87668.0,87664.0,0.04797428]
[1767253672864,0.5162571,87680.0,87664.0,0.04797428]
[1767253673086,0.0472393,87679.0,87664.0,0.04797428]
[1767253673302,0.0472393,87679.0,87662.0,0.01140745]
[1767253673500,0.0472393,87679.0,87660.0,0.01140771]
[1767253674901,0.0472393,87679.0,87661.0,0.01140758]
[1767253675228,0.0472393,87679.0,87662.0,0.01140745]
[1767253675524,0.0472393,87679.0,87662.0,0.04564743]
[1767253675906,0.0472393,87679.0,87662.0,0.01140745]
[1767253676098,0.0472393,87679.0,87663.0,0.03423998]
[1767253680570,0.0472393,87679.0,87663.0,0.0456473]
[1767253680977,0.0472393,87679.0,87662.0,0.01140745]
[1767253681120,0.0472393,87679.0,87664.0,0.03423998]
[1767253689590,0.0586793,87679.0,87664.0,0.03423998]
[1767253696735,0.0586793,87679.0,87664.0,0.08221426]
[1767253698502,0.5162571,87674.0,87664.0,0.08221426]
[1767253698840,0.0586793,87679.0,87664.0,0.08221426]
[1767253699082,0.0586793,87679.0,87664.0,0.03423998]
[1767253699282,0.5634964,87674.0,87661.0,0.01144]
[1767253699498,0.5162571,87671.0,87661.0,0.04568178]
[1767253699706,0.5162571,87671.0,87661.0,0.09365606]
[1767253699924,0.5162571,87671.0,87662.0,0.04797428]
[1767253704617,0.0586793,87679.0,87662.0,0.04797428]
[1767253705023,0.5162571,87672.0,87662.0,0.04797428]
[1767253709881,0.5162571,87672.0,87662.0,0.04821963]
[1767253716526,0.51629837,87672.0,87662.0,0.04821963]
[1767253721662,0.0586793,87679.0,87672.0,0.00055]
[1767253722031,0.0586793,87679.0,87665.0,0.01140706]
[1767253722650,0.0586793,87679.0,87666.0,0.01140693]
[1767253722853,0.0586793,87679.0,87667.0,0.0114068]
[1767253724249,0.51629837,87677.0,87664.0,0.01140719]
[1767253724491,0.51629837,87674.0,87664.0,0.05962682]
[1767253725478,0.0586793,87679.0,87664.0,0.05962682]
[1767253726295,0.0586793,87679.0,87665.0,0.01140706]
[1767253726504,0.0586793,87679.0,87664.0,0.04821963]
[1767253727905,0.0586793,87679.0,87664.0,0.05962682]
[1767253730082,0.0586793,87679.0,87665.0,0.01140706]
[1767253730490,0.0586793,87679.0,87666.0,0.01140693]
[1767253730893,0.0586793,87679.0,87668.0,0.01140667]
[1767253731656,0.0586793,87679.0,87668.0,0.06843941]
[1767253732199,0.0586793,87679.0,87670.0,0.01140641]
[1767253732761,0.0586793,87679.0,87671.0,0.01140628]
[1767253733896,0.0586793,87679.0,87672.0,0.01140615]
[1767253734080,0.01144,87679.0,87672.0,0.01140615]
[1767253734801,0.01144,87679.0,87671.0,0.01140628]
[1767253735789,0.01144,87679.0,87672.0,0.01140615]
[1767253735992,0.01144,87679.0,87671.0,0.01140628]
[1767253736236,0.01144,87679.0,87672.0,0.01140615]
[1767253736596,0.01144,87679.0,87671.0,0.01140628]
[1767253736797,0.01144,87679.0,87673.0,0.01140602]
[1767253737141,0.01144,87679.0,87672.0,0.01140615]
[1767253738314,0.01144,87679.0,87670.0,0.01140641]
[1767253739151,0.01144,87679.0,87671.0,0.01140628]
[1767253739716,0.01144,87679.0,87670.0,0.01140641]
[1767253740566,0.01144,87679.0,87672.0,0.01140615]
[1767253741269,0.01144,87679.0,87671.0,0.01140628]
[1767253741430,0.01144,87679.0,87672.0,0.01140615]
[1767253741649,0.01144,87679.0,87671.0,0.01140628]
[1767253741908,0.01144,87679.0,87672.0,0.01140615]
[1767253742666,0.01144,87679.0,87671.0,0.01140628]
[1767253742921,0.01144,87679.0,87672.0,0.01140615]
[1767253743227,0.01144,87679.0,87671.0,0.01140628]
[1767253743516,0.01144,87679.0,87672.0,0.01140615]
[1767253743811,0.01144,87679.0,87671.0,0.01140628]
[1767253744577,0.01144,87679.0,87672.0,0.01140615]
[1767253744786,0.01144,87679.0,87673.0,0.01140602]
[1767253744991,0.01144,87679.0,87674.0,0.01140589]
[1767253745200,0.01144,87679.0,87673.0,0.01140602]
[1767253746874,0.01144,87679.0,87672.0,0.01140615]
[1767253748947,0.0115849,87681.0,87672.0,0.01140615]
[1767253749692,0.0001449,87681.0,87672.0,0.01140615]
[1767253749890,0.0115849,87681.0,87671.0,0.01140628]
[1767253750067,0.52788327,87681.0,87671.0,0.01140628]
[1767253752680,0.52788327,87681.0,87670.0,0.03424174]
[1767253752852,0.52788327,87681.0,87670.0,0.04564815]
[1767253753200,0.52788327,87681.0,87670.0,0.03424174]
[1767253753404,0.52788327,87681.0,87670.0,0.04564815]
[1767253753931,0.52788327,87681.0,87670.0,0.03424174]
[1767253754206,0.52788327,87681.0,87670.0,0.04564815]
[1767253757037,0.52788327,87681.0,87671.0,0.01140628]
[1767253757241,0.52788327,87681.0,87670.0,0.04564815]
[1767253758058,0.51644327,87681.0,87670.0,0.04564815]
[1767253758265,0.52788327,87681.0,87670.0,0.04564815]
[1767253759182,0.51644327,87681.0,87670.0,0.04564815]
[1767253759418,0.52788327,87681.0,87670.0,0.04564815]
[1767253759560,0.51644327,87681.0,87670.0,0.04564815]
[1767253759996,0.52788327,87681.0,87670.0,0.04564815]
[1767253760204,0.51644327,87681.0,87670.0,0.04564815]
[1767253760724,0.52788327,87681.0,87670.0,0.03424174]
[1767253760923,0.52788327,87681.0,87670.0,0.04564815]
[1767253762086,0.51644327,87681.0,87670.0,0.04564815]
[1767253762293,0.52788327,87681.0,87670.0,0.04564815]
[1767253763742,0.51644327,87681.0,87670.0,0.04564815]
[1767253763919,0.52788327,87681.0,87670.0,0.04564815]
[1767253765397,0.52788327,87681.0,87670.0,0.03424174]
[1767253769393,0.51644327,87681.0,87670.0,0.03424174]
[1767253769597,0.52788327,87681.0,87670.0,0.03424174]
[1767253770418,0.0115849,87681.0,87670.0,0.03424174]
[1767253770583,0.51629837,87680.0,87670.0,0.03424174]
[1767253776674,0.0001449,87681.0,87670.0,0.03424174]
[1767253777082,0.0115849,87681.0,87670.0,0.03424174]
[1767253778558,0.0001449,87681.0,87670.0,0.03424174]
[1767253778771,0.0115849,87681.0,87670.0,0.03424174]
[1767253780002,0.0001449,87681.0,87670.0,0.03424174]
[1767253780293,0.0115849,87681.0,87670.0,0.03424174]
[1767253781598,0.0115849,87681.0,87671.0,0.04746149]
[1767253782915,0.0001449,87681.0,87671.0,0.04746149]
[1767253783214,0.0115849,87681.0,87671.0,0.04746149]
[1767253785904,0.0001449,87681.0,87671.0,0.04746149]
[1767253786344,0.0001449,87681.0,87671.0,0.08170284]
[1767253793220,0.0001449,87681.0,87672.0,0.04614192]
[1767253793769,0.0001449,87681.0,87673.0,0.04614192]
[1767253794095,0.0001449,87681.0,87673.0,0.05758192]